[Event "*** Titled Tuesday Blitz"]
[Site "Chess.com"]
[Date "2021.04.27"]
[Round "10"]
[White "davigator"]
[Black "827883"]
[Result "0-1"]
[WhiteElo "2413"]
[BlackElo "2288"]
[TimeControl "180+1"]
[EndTime "11:54:35 PDT"]
[Termination "827883 won by resignation"]

1. e4 {[%clk 0:02:29.7]} 1... e5 {[%clk 0:02:59.5]} 2. Nf3 {[%clk 0:02:28.7]}
2... Nc6 {[%clk 0:03:00.2]} 3. Bb5 {[%clk 0:02:28.2]} 3... a6 {[%clk 0:03:00.8]}
4. Ba4 {[%clk 0:02:28]} 4... Nf6 {[%clk 0:03:01.7]} 5. O-O {[%clk 0:02:28.1]}
5... Be7 {[%clk 0:03:02.5]} 6. Re1 {[%clk 0:02:28.4]} 6... b5 {[%clk 0:03:03.1]}
7. Bb3 {[%clk 0:02:29]} 7... O-O {[%clk 0:03:03.8]} 8. c3 {[%clk 0:02:29.6]}
8... d5 {[%clk 0:03:04.5]} 9. exd5 {[%clk 0:02:30.5]} 9... Nxd5 {[%clk
0:03:05.4]} 10. Nxe5 {[%clk 0:02:30.8]} 10... Nxe5 {[%clk 0:03:06.3]} 11. Rxe5
{[%clk 0:02:31.1]} 11... c6 {[%clk 0:03:07.2]} 12. d4 {[%clk 0:02:31.2]} 12...
Bd6 {[%clk 0:03:08]} 13. Re1 {[%clk 0:02:30.4]} 13... Qh4 {[%clk 0:03:08.5]} 14.
g3 {[%clk 0:02:30.8]} 14... Qh3 {[%clk 0:03:09.2]} 15. Be3 {[%clk 0:02:30.7]}
15... Bg4 {[%clk 0:03:09.9]} 16. Qd3 {[%clk 0:02:31.2]} 16... Rae8 {[%clk
0:03:10.6]} 17. Nd2 {[%clk 0:02:31.4]} 17... Qh5 {[%clk 0:03:07.7]} 18. a4
{[%clk 0:02:29.3]} 18... Re6 {[%clk 0:03:06.2]} 19. axb5 {[%clk 0:02:22.5]}
19... axb5 {[%clk 0:03:07.1]} 20. Qf1 {[%clk 0:02:22.1]} 20... Rfe8 {[%clk
0:02:50.1]} 21. Bxd5 {[%clk 0:02:17.5]} 21... Qxd5 {[%clk 0:02:45.6]} 22. Qg2
{[%clk 0:02:17]} 22... Qh5 {[%clk 0:02:44.1]} 23. Ra6 {[%clk 0:02:08.5]} 23...
Bh3 {[%clk 0:02:29]} 24. Qf3 {[%clk 0:02:08.2]} 24... Bg4 {[%clk 0:02:29.1]} 25.
Qh1 {[%clk 0:02:07.3]} 25... f5 {[%clk 0:02:25.8]} 26. Qxc6 {[%clk 0:01:59.3]}
26... Bxg3 {[%clk 0:02:11.9]} 27. Qxe6+ {[%clk 0:01:53.9]} 27... Rxe6 {[%clk
0:02:11.3]} 28. Ra8+ {[%clk 0:01:53.9]} 28... Re8 {[%clk 0:01:59.2]} 29. Rxe8+
{[%clk 0:01:53.3]} 29... Qxe8 {[%clk 0:02:00.1]} 30. hxg3 {[%clk 0:01:53.8]}
30... Qc6 {[%clk 0:01:53.5]} 31. f3 {[%clk 0:01:42.4]} 31... Bxf3 {[%clk
0:01:51.4]} 32. Nxf3 {[%clk 0:01:42.3]} 32... Qxf3 {[%clk 0:01:51.7]} 33. Bf2
{[%clk 0:01:39.1]} 33... Qd3 {[%clk 0:01:48.2]} 34. Kg2 {[%clk 0:01:36.8]} 34...
Qc2 {[%clk 0:01:48.1]} 35. Re5 {[%clk 0:01:34.1]} 35... Qxb2 {[%clk 0:01:40.6]}
36. Rxf5 {[%clk 0:01:33.9]} 36... Qxc3 {[%clk 0:01:28.8]} 37. Rc5 {[%clk
0:01:31.7]} 37... Qd3 {[%clk 0:01:08.7]} 38. Rc8+ {[%clk 0:01:30.9]} 38... Kf7
{[%clk 0:01:08.9]} 39. Rc7+ {[%clk 0:01:31.8]} 39... Kf6 {[%clk 0:00:51.3]} 40.
Rc6+ {[%clk 0:01:31.4]} 40... Ke7 {[%clk 0:00:51.8]} 41. Rc7+ {[%clk 0:01:31.1]}
41... Kd6 {[%clk 0:00:52.4]} 42. Rxg7 {[%clk 0:01:30.8]} 42... b4 {[%clk
0:00:53.2]} 43. Rg8 {[%clk 0:01:08.4]} 43... b3 {[%clk 0:00:52.1]} 44. Rb8
{[%clk 0:01:07.9]} 44... Kc7 {[%clk 0:00:47.5]} 45. Rb4 {[%clk 0:01:01.5]} 45...
Qc3 {[%clk 0:00:47.4]} 46. Rb5 {[%clk 0:01:00.6]} 46... Qc4 {[%clk 0:00:44.1]}
47. Rh5 {[%clk 0:00:49]} 47... Qd3 {[%clk 0:00:25.3]} 48. Rc5+ {[%clk 0:00:43]}
48... Kd7 {[%clk 0:00:25]} 49. Rd5+ {[%clk 0:00:40.9]} 49... Ke6 {[%clk
0:00:24.1]} 50. Re5+ {[%clk 0:00:40.4]} 50... Kd6 {[%clk 0:00:24.8]} 51. Re1
{[%clk 0:00:35.5]} 51... b2 {[%clk 0:00:23.7]} 52. Be3 {[%clk 0:00:30.7]} 52...
b1=Q {[%clk 0:00:20.4]} 53. Bf4+ {[%clk 0:00:29.9]} 53... Kd7 {[%clk 0:00:21]}
54. Rxb1 {[%clk 0:00:29.4]} 54... Qxb1 {[%clk 0:00:21.9]} 55. Be5 {[%clk
0:00:29.1]} 55... Qe4+ {[%clk 0:00:21.8]} 56. Kh3 {[%clk 0:00:26]} 56... Ke6
{[%clk 0:00:22.7]} 57. g4 {[%clk 0:00:23.1]} 57... Kf7 {[%clk 0:00:22.9]} 58.
Kh4 {[%clk 0:00:20.6]} 58... Kg6 {[%clk 0:00:23.8]} 59. Kg3 {[%clk 0:00:18.7]}
59... Kg5 {[%clk 0:00:24.7]} 60. Kf2 {[%clk 0:00:17.9]} 60... Kxg4 {[%clk
0:00:25]} 61. Bh8 {[%clk 0:00:15.6]} 61... h5 {[%clk 0:00:25.4]} 62. Be5 {[%clk
0:00:14.6]} 62... h4 {[%clk 0:00:24.9]} 63. Kf1 {[%clk 0:00:14.4]} 63... Kf3
{[%clk 0:00:23.1]} 64. Kg1 {[%clk 0:00:13.7]} 64... Qc2 {[%clk 0:00:23.1]} 0-1

[Event "*** Titled Tuesday Blitz"]
[Site "Chess.com"]
[Date "2021.04.27"]
[Round "10"]
[White "Abund"]
[Black "VerdeNotte"]
[Result "0-1"]
[WhiteElo "2760"]
[BlackElo "2899"]
[TimeControl "180+1"]
[EndTime "11:54:53 PDT"]
[Termination "VerdeNotte won on time"]

1. e4 {[%clk 0:03:00.9]} 1... c5 {[%clk 0:02:59.2]} 2. Nf3 {[%clk 0:03:00.7]}
2... d6 {[%clk 0:02:59.7]} 3. Bb5+ {[%clk 0:03:00.4]} 3... Bd7 {[%clk
0:02:59.9]} 4. Bxd7+ {[%clk 0:03:00.1]} 4... Nxd7 {[%clk 0:03:00.8]} 5. O-O
{[%clk 0:02:59.7]} 5... Ngf6 {[%clk 0:03:00.5]} 6. Qe2 {[%clk 0:02:57.6]} 6...
Rc8 {[%clk 0:03:00]} 7. b3 {[%clk 0:02:53.6]} 7... g6 {[%clk 0:02:49.4]} 8. Bb2
{[%clk 0:02:53.6]} 8... Bg7 {[%clk 0:02:49.9]} 9. c4 {[%clk 0:02:51.8]} 9... e5
{[%clk 0:02:48.6]} 10. Nc3 {[%clk 0:02:50.6]} 10... Nh5 {[%clk 0:02:46.9]} 11.
Nd5 {[%clk 0:02:46.5]} 11... Ndf6 {[%clk 0:02:46.4]} 12. Nxf6+ {[%clk
0:02:40.1]} 12... Qxf6 {[%clk 0:02:43.4]} 13. g3 {[%clk 0:02:36.8]} 13... O-O
{[%clk 0:02:39.3]} 14. d3 {[%clk 0:02:36.3]} 14... Qe7 {[%clk 0:02:33.2]} 15.
Nh4 {[%clk 0:01:51.7]} 15... Nf4 {[%clk 0:02:32.9]} 16. Qf3 {[%clk 0:01:47]}
16... Ne6 {[%clk 0:02:31.7]} 17. Qg4 {[%clk 0:01:38.5]} 17... Qg5 {[%clk
0:01:52.6]} 18. Qxg5 {[%clk 0:01:29.4]} 18... Nxg5 {[%clk 0:01:53.5]} 19. f4
{[%clk 0:01:22]} 19... exf4 {[%clk 0:01:49]} 20. Bxg7 {[%clk 0:01:21.8]} 20...
Kxg7 {[%clk 0:01:49.9]} 21. gxf4 {[%clk 0:01:22]} 21... Ne6 {[%clk 0:01:50.3]}
22. f5 {[%clk 0:01:19.5]} 22... Nd4 {[%clk 0:01:50.5]} 23. Nf3 {[%clk
0:01:13.3]} 23... Nc6 {[%clk 0:01:50.6]} 24. Kf2 {[%clk 0:01:07.6]} 24... gxf5
{[%clk 0:01:50.4]} 25. Rg1+ {[%clk 0:01:02.4]} 25... Kf6 {[%clk 0:01:41.9]} 26.
Ng5 {[%clk 0:00:52.2]} 26... Rg8 {[%clk 0:01:40.5]} 27. Nxh7+ {[%clk 0:00:48.6]}
27... Ke5 {[%clk 0:01:40.9]} 28. Ng5 {[%clk 0:00:38.5]} 28... fxe4 {[%clk
0:01:25.3]} 29. Nxe4 {[%clk 0:00:36.1]} 29... Rh8 {[%clk 0:01:18.4]} 30. Rg2
{[%clk 0:00:26.4]} 30... f5 {[%clk 0:01:12.9]} 31. Ng5 {[%clk 0:00:23.5]} 31...
Kd4 {[%clk 0:01:11.5]} 32. Ke2 {[%clk 0:00:14.7]} 32... Kc3 {[%clk 0:01:09.7]}
33. Rc1+ {[%clk 0:00:13.6]} 33... Kb4 {[%clk 0:01:09.4]} 34. Kd2 {[%clk
0:00:12.1]} 34... Nd4 {[%clk 0:01:07.8]} 35. Rf1 {[%clk 0:00:11.5]} 35... Rhg8
{[%clk 0:01:03]} 36. h4 {[%clk 0:00:09.5]} 36... Rce8 {[%clk 0:01:03.2]} 37.
Rff2 {[%clk 0:00:09.1]} 37... a5 {[%clk 0:00:58.1]} 38. h5 {[%clk 0:00:07.3]}
38... a4 {[%clk 0:00:55]} 39. bxa4 {[%clk 0:00:05.2]} 39... Ra8 {[%clk
0:00:51.2]} 40. h6 {[%clk 0:00:04.6]} 40... Rxa4 {[%clk 0:00:51.1]} 41. h7
{[%clk 0:00:03.4]} 41... Rxa2+ {[%clk 0:00:49.7]} 42. Ke3 {[%clk 0:00:03.5]}
42... Re8+ {[%clk 0:00:38.8]} 43. Kf4 {[%clk 0:00:03.8]} 43... Raa8 {[%clk
0:00:29.2]} 44. Rh2 {[%clk 0:00:03.7]} 44... Kc3 {[%clk 0:00:27]} 45. Nf7 {[%clk
0:00:03.8]} 45... Kxd3 {[%clk 0:00:24.7]} 46. h8=Q {[%clk 0:00:03.9]} 46... Re4+
{[%clk 0:00:24.1]} 47. Kg5 {[%clk 0:00:03.5]} 47... Rg4+ {[%clk 0:00:22.1]} 48.
Kf6 {[%clk 0:00:03.4]} 48... Rxh8 {[%clk 0:00:22.9]} 49. Rxh8 {[%clk 0:00:03.1]}
49... f4 {[%clk 0:00:21.7]} 50. Nxd6 {[%clk 0:00:02.4]} 50... Ke3 {[%clk
0:00:21.9]} 51. Rh3+ {[%clk 0:00:02.9]} 51... Kxf2 {[%clk 0:00:21.9]} 52. Ne4+
{[%clk 0:00:02.7]} 52... Kg2 {[%clk 0:00:22.2]} 53. Rd3 {[%clk 0:00:03.3]} 53...
Rg8 {[%clk 0:00:19.5]} 54. Nxc5 {[%clk 0:00:03.4]} 54... Ne2 {[%clk 0:00:15.2]}
55. Ne4 {[%clk 0:00:03]} 55... f3 {[%clk 0:00:15.2]} 56. Ke5 {[%clk 0:00:02.8]}
56... Re8+ {[%clk 0:00:14.7]} 57. Kf5 {[%clk 0:00:03]} 57... Ng3+ {[%clk
0:00:13.1]} 58. Nxg3 {[%clk 0:00:02.9]} 58... Kxg3 {[%clk 0:00:14]} 59. Rb3
{[%clk 0:00:03.1]} 59... Rc8 {[%clk 0:00:11.1]} 60. Rxb7 {[%clk 0:00:01.9]}
60... f2 {[%clk 0:00:10.9]} 61. Rb2 {[%clk 0:00:01.8]} 61... f1=Q+ {[%clk
0:00:10.7]} 0-1

[Event "*** Titled Tuesday Blitz"]
[Site "Chess.com"]
[Date "2021.04.27"]
[Round "10"]
[White "ferch1ni"]
[Black "tteshan"]
[Result "0-1"]
[WhiteElo "2337"]
[BlackElo "2254"]
[TimeControl "180+1"]
[EndTime "11:54:53 PDT"]
[Termination "tteshan won by resignation"]

1. e4 {[%clk 0:01:29.4]} 1... c5 {[%clk 0:02:59]} 2. Nf3 {[%clk 0:01:28.8]} 2...
Nc6 {[%clk 0:02:59.3]} 3. d4 {[%clk 0:01:28.3]} 3... cxd4 {[%clk 0:03:00.2]} 4.
Nxd4 {[%clk 0:01:29]} 4... g6 {[%clk 0:03:00.8]} 5. Nc3 {[%clk 0:01:25]} 5...
Bg7 {[%clk 0:03:00.5]} 6. Be3 {[%clk 0:01:24.7]} 6... Nf6 {[%clk 0:03:00.1]} 7.
Be2 {[%clk 0:01:21.6]} 7... O-O {[%clk 0:02:59.6]} 8. O-O {[%clk 0:01:09.6]}
8... d6 {[%clk 0:02:58.3]} 9. f3 {[%clk 0:00:56.4]} 9... Bd7 {[%clk 0:02:56.2]}
10. Qd2 {[%clk 0:00:55.5]} 10... a6 {[%clk 0:02:49.4]} 11. Rad1 {[%clk
0:00:52.7]} 11... Rc8 {[%clk 0:02:47.7]} 12. Kh1 {[%clk 0:00:47.4]} 12... b5
{[%clk 0:02:31.6]} 13. a3 {[%clk 0:00:27.3]} 13... Ne5 {[%clk 0:02:29]} 14. b3
{[%clk 0:00:21.8]} 14... Qc7 {[%clk 0:02:23.4]} 15. Nd5 {[%clk 0:00:20.2]} 15...
Nxd5 {[%clk 0:02:22.3]} 16. exd5 {[%clk 0:00:21.1]} 16... Qc3 {[%clk 0:01:48.7]}
17. Nc6 {[%clk 0:00:14.8]} 17... Qxd2 {[%clk 0:01:39.2]} 18. Nxe7+ {[%clk
0:00:14.1]} 18... Kh8 {[%clk 0:01:39.7]} 19. Rxd2 {[%clk 0:00:14.2]} 19... Rce8
{[%clk 0:01:40.3]} 20. Nc6 {[%clk 0:00:13.5]} 20... Nxc6 {[%clk 0:01:18.1]} 21.
dxc6 {[%clk 0:00:11]} 21... Bxc6 {[%clk 0:01:18.5]} 22. Bb6 {[%clk 0:00:05.5]}
22... Re6 {[%clk 0:01:15.5]} 23. Bd3 {[%clk 0:00:05.2]} 23... Rfe8 {[%clk
0:01:14.8]} 24. h4 {[%clk 0:00:04.4]} 24... h5 {[%clk 0:01:00.8]} 25. Kh2 {[%clk
0:00:04.6]} 25... Be5+ {[%clk 0:00:58.5]} 26. Kh3 {[%clk 0:00:05]} 26... Bd7
{[%clk 0:00:56.1]} 27. g4 {[%clk 0:00:04.6]} 27... Bf4 {[%clk 0:00:54.6]} 28.
Rdf2 {[%clk 0:00:04]} 28... Re1 {[%clk 0:00:47.3]} 29. Rxe1 {[%clk 0:00:03.8]}
29... Rxe1 {[%clk 0:00:48.2]} 30. Rf1 {[%clk 0:00:04.3]} 30... Rxf1 {[%clk
0:00:30.7]} 31. Bxf1 {[%clk 0:00:04.2]} 31... f5 {[%clk 0:00:31.1]} 32. gxh5
{[%clk 0:00:04.2]} 32... gxh5 {[%clk 0:00:30.1]} 33. Bd3 {[%clk 0:00:04.8]}
33... Kg7 {[%clk 0:00:28.7]} 34. Kg2 {[%clk 0:00:04.9]} 34... Bc1 {[%clk
0:00:25.4]} 35. a4 {[%clk 0:00:04.8]} 35... bxa4 {[%clk 0:00:23.2]} 36. bxa4
{[%clk 0:00:05.7]} 36... Bxa4 {[%clk 0:00:22.6]} 37. Bxf5 {[%clk 0:00:05.7]}
37... Bb5 {[%clk 0:00:22]} 38. Bd4+ {[%clk 0:00:05.5]} 38... Kh6 {[%clk
0:00:20.9]} 39. Kf2 {[%clk 0:00:05.2]} 39... Bf4 {[%clk 0:00:15.8]} 40. Be3
{[%clk 0:00:05.2]} 40... Bxe3+ {[%clk 0:00:12.8]} 41. Kxe3 {[%clk 0:00:06.1]}
41... a5 {[%clk 0:00:13.5]} 42. Kd4 {[%clk 0:00:06.4]} 42... Kg7 {[%clk
0:00:12.7]} 43. Kd5 {[%clk 0:00:05.1]} 43... a4 {[%clk 0:00:13]} 44. Kxd6 {[%clk
0:00:05.3]} 44... Bc4 {[%clk 0:00:13.2]} 45. Kc5 {[%clk 0:00:04.4]} 45... a3
{[%clk 0:00:13]} 46. Kxc4 {[%clk 0:00:02.9]} 46... a2 {[%clk 0:00:13.3]} 47. Be4
{[%clk 0:00:03.8]} 47... a1=Q {[%clk 0:00:13.4]} 48. Kd5 {[%clk 0:00:04.7]}
48... Qc3 {[%clk 0:00:13.2]} 49. Ke6 {[%clk 0:00:04.4]} 49... Qe1 {[%clk
0:00:11.2]} 50. c4 {[%clk 0:00:04.3]} 50... Qxh4 {[%clk 0:00:11.5]} 51. c5
{[%clk 0:00:04.8]} 51... Qf6+ {[%clk 0:00:11.5]} 52. Kd5 {[%clk 0:00:05.2]}
52... h4 {[%clk 0:00:11.5]} 53. c6 {[%clk 0:00:05.5]} 53... Qd8+ {[%clk
0:00:11.1]} 54. Kc5 {[%clk 0:00:05.5]} 54... h3 {[%clk 0:00:10.9]} 55. f4 {[%clk
0:00:05.1]} 55... h2 {[%clk 0:00:11.3]} 56. f5 {[%clk 0:00:04.4]} 56... Kf6
{[%clk 0:00:11.1]} 57. Kb5 {[%clk 0:00:04.1]} 57... Ke5 {[%clk 0:00:11.1]} 58.
Bg2 {[%clk 0:00:03.5]} 58... Kxf5 {[%clk 0:00:11.2]} 59. Ka6 {[%clk 0:00:04.3]}
59... Qc7 {[%clk 0:00:10.8]} 60. Bh1 {[%clk 0:00:03.5]} 60... Ke5 {[%clk
0:00:11]} 61. Kb5 {[%clk 0:00:04]} 61... Kd6 {[%clk 0:00:11.3]} 62. Bg2 {[%clk
0:00:04]} 62... Qg7 {[%clk 0:00:09.8]} 63. Be4 {[%clk 0:00:03.7]} 63... Qe5+
{[%clk 0:00:09]} 64. Kb6 {[%clk 0:00:03.6]} 64... Qxe4 {[%clk 0:00:09]} 65. c7
{[%clk 0:00:04.5]} 65... Qc6+ {[%clk 0:00:07.7]} 0-1

[Event "*** Titled Tuesday Blitz"]
[Site "Chess.com"]
[Date "2021.04.27"]
[Round "10"]
[White "canary2016"]
[Black "AungTZ"]
[Result "1/2-1/2"]
[WhiteElo "1997"]
[BlackElo "2146"]
[TimeControl "180+1"]
[EndTime "11:54:53 PDT"]
[Termination "Game drawn - insufficient material"]

1. d4 {[%clk 0:03:00.9]} 1... Nf6 {[%clk 0:02:33]} 2. c4 {[%clk 0:03:00.7]} 2...
e6 {[%clk 0:02:31.5]} 3. g3 {[%clk 0:03:00.6]} 3... Bb4+ {[%clk 0:02:24.7]} 4.
Nd2 {[%clk 0:02:59.3]} 4... O-O {[%clk 0:02:23.4]} 5. Bg2 {[%clk 0:02:59.2]}
5... c6 {[%clk 0:02:23.1]} 6. Nf3 {[%clk 0:02:59.3]} 6... d5 {[%clk 0:02:23]} 7.
O-O {[%clk 0:02:58.8]} 7... Nbd7 {[%clk 0:02:11.2]} 8. Qc2 {[%clk 0:02:58.1]}
8... b6 {[%clk 0:02:08.9]} 9. a3 {[%clk 0:02:55.7]} 9... Bd6 {[%clk 0:02:06.9]}
10. b4 {[%clk 0:02:55.6]} 10... Bb7 {[%clk 0:02:06.5]} 11. c5 {[%clk 0:02:54.5]}
11... Bc7 {[%clk 0:02:05.3]} 12. e4 {[%clk 0:02:53]} 12... e5 {[%clk 0:02:01.1]}
13. Bb2 {[%clk 0:02:49.2]} 13... exd4 {[%clk 0:01:56.6]} 14. Nxd4 {[%clk
0:02:48.6]} 14... bxc5 {[%clk 0:01:55.9]} 15. bxc5 {[%clk 0:02:48.1]} 15... dxe4
{[%clk 0:01:45.5]} 16. Nxe4 {[%clk 0:02:47.6]} 16... Ne5 {[%clk 0:01:20.9]} 17.
Rfd1 {[%clk 0:02:45]} 17... Nxe4 {[%clk 0:01:06.2]} 18. Bxe4 {[%clk 0:02:42.8]}
18... Qf6 {[%clk 0:00:56.6]} 19. Bxh7+ {[%clk 0:02:37.1]} 19... Kh8 {[%clk
0:00:56.9]} 20. Be4 {[%clk 0:02:36.4]} 20... Rae8 {[%clk 0:00:50.9]} 21. Bg2
{[%clk 0:02:32.1]} 21... Qh6 {[%clk 0:00:45.5]} 22. Nf5 {[%clk 0:02:19.4]} 22...
Qh7 {[%clk 0:00:44.5]} 23. Ne3 {[%clk 0:02:18.5]} 23... Qxc2 {[%clk 0:00:42.1]}
24. Nxc2 {[%clk 0:02:18.3]} 24... Nc4 {[%clk 0:00:42.6]} 25. Bc3 {[%clk
0:02:15.3]} 25... Be5 {[%clk 0:00:28]} 26. Bxe5 {[%clk 0:02:10.7]} 26... Rxe5
{[%clk 0:00:28.9]} 27. Rd7 {[%clk 0:02:09.6]} 27... Bc8 {[%clk 0:00:23.8]} 28.
Rxa7 {[%clk 0:02:03.4]} 28... Rxc5 {[%clk 0:00:23.6]} 29. Nb4 {[%clk 0:02:03.2]}
29... Ne5 {[%clk 0:00:21.8]} 30. f4 {[%clk 0:01:56.6]} 30... Ng4 {[%clk
0:00:21.1]} 31. Nxc6 {[%clk 0:01:44.6]} 31... Ne3 {[%clk 0:00:18.5]} 32. Ne7
{[%clk 0:01:42.6]} 32... Be6 {[%clk 0:00:16.4]} 33. Re1 {[%clk 0:01:38.7]} 33...
Nxg2 {[%clk 0:00:15.4]} 34. Kxg2 {[%clk 0:01:38.7]} 34... Rb8 {[%clk 0:00:15.5]}
35. Re2 {[%clk 0:01:21.2]} 35... Bg4 {[%clk 0:00:14.1]} 36. Rd2 {[%clk
0:01:18.8]} 36... Rb3 {[%clk 0:00:13.7]} 37. h3 {[%clk 0:01:05.1]} 37... Bf3+
{[%clk 0:00:12.8]} 38. Kf2 {[%clk 0:01:05]} 38... Be4 {[%clk 0:00:10]} 39. Ra4
{[%clk 0:00:53.1]} 39... f5 {[%clk 0:00:08.8]} 40. Ng6+ {[%clk 0:00:49.3]} 40...
Kh7 {[%clk 0:00:08.3]} 41. Ne5 {[%clk 0:00:46]} 41... Rcc3 {[%clk 0:00:06]} 42.
g4 {[%clk 0:00:38.9]} 42... Rxh3 {[%clk 0:00:05.9]} 43. Rad4 {[%clk 0:00:24]}
43... Rh2+ {[%clk 0:00:05.6]} 44. Ke1 {[%clk 0:00:24]} 44... Re3+ {[%clk
0:00:05.5]} 45. Kf1 {[%clk 0:00:19.5]} 45... Rf3+ {[%clk 0:00:05.5]} 46. Kg1
{[%clk 0:00:14.9]} 46... Rhh3 {[%clk 0:00:05.5]} 47. Rh2 {[%clk 0:00:11.7]}
47... Rg3+ {[%clk 0:00:05.5]} 48. Kf2 {[%clk 0:00:09.1]} 48... Rxh2+ {[%clk
0:00:06.4]} 49. Kxg3 {[%clk 0:00:09.2]} 49... Rg2+ {[%clk 0:00:06.5]} 50. Kh3
{[%clk 0:00:08.6]} 50... Ra2 {[%clk 0:00:06.9]} 51. gxf5 {[%clk 0:00:08.3]}
51... Rxa3+ {[%clk 0:00:07]} 52. Kg4 {[%clk 0:00:08]} 52... Bc2 {[%clk
0:00:07.2]} 53. Nf3 {[%clk 0:00:07.7]} 53... Bd1 {[%clk 0:00:08.1]} 54. f6
{[%clk 0:00:04.2]} 54... Bxf3+ {[%clk 0:00:08.1]} 55. Kf5 {[%clk 0:00:04.5]}
55... gxf6 {[%clk 0:00:08.6]} 56. Rd7+ {[%clk 0:00:04.6]} 56... Kh6 {[%clk
0:00:07.8]} 57. Kxf6 {[%clk 0:00:04.5]} 57... Ra6+ {[%clk 0:00:08.3]} 58. Kf5
{[%clk 0:00:04.5]} 58... Ra5+ {[%clk 0:00:08.7]} 59. Ke6 {[%clk 0:00:03.4]}
59... Ra6+ {[%clk 0:00:09.1]} 60. Ke7 {[%clk 0:00:03.8]} 60... Bg4 {[%clk
0:00:08.1]} 61. Rd8 {[%clk 0:00:03.3]} 61... Re6+ {[%clk 0:00:08.6]} 62. Kf8
{[%clk 0:00:02.4]} 62... Rf6+ {[%clk 0:00:08.3]} 63. Ke7 {[%clk 0:00:02.8]}
63... Rxf4 {[%clk 0:00:09.2]} 64. Ke8 {[%clk 0:00:02.9]} 64... Kg5 {[%clk
0:00:10.1]} 65. Ke7 {[%clk 0:00:03.2]} 65... Bf5 {[%clk 0:00:10.2]} 66. Rg8+
{[%clk 0:00:03.4]} 66... Kh6 {[%clk 0:00:09.8]} 67. Rh8+ {[%clk 0:00:03.6]}
67... Bh7 {[%clk 0:00:10.3]} 68. Rf8 {[%clk 0:00:03.5]} 68... Re4+ {[%clk
0:00:11.2]} 69. Kf7 {[%clk 0:00:03.4]} 69... Rf4+ {[%clk 0:00:10.5]} 70. Ke7
{[%clk 0:00:03.6]} 70... Rxf8 {[%clk 0:00:11.4]} 71. Kxf8 {[%clk 0:00:03.8]}
1/2-1/2

[Event "*** Titled Tuesday Blitz"]
[Site "Chess.com"]
[Date "2021.04.27"]
[Round "10"]
[White "gonzaga23"]
[Black "Kolle05"]
[Result "0-1"]
[WhiteElo "2451"]
[BlackElo "2334"]
[TimeControl "180+1"]
[EndTime "11:54:54 PDT"]
[Termination "Kolle05 won by resignation"]

1. e4 {[%clk 0:03:00]} 1... c5 {[%clk 0:02:58.4]} 2. Nf3 {[%clk 0:03:00.5]} 2...
d6 {[%clk 0:02:57.4]} 3. d4 {[%clk 0:03:01.1]} 3... cxd4 {[%clk 0:02:58.3]} 4.
Qxd4 {[%clk 0:03:02]} 4... a6 {[%clk 0:02:58]} 5. c4 {[%clk 0:03:01.7]} 5... Nc6
{[%clk 0:02:57.6]} 6. Qd2 {[%clk 0:03:00.8]} 6... Nf6 {[%clk 0:02:57.3]} 7. Nc3
{[%clk 0:03:01]} 7... g6 {[%clk 0:02:57.3]} 8. b3 {[%clk 0:03:01.5]} 8... Bg7
{[%clk 0:02:57]} 9. Bb2 {[%clk 0:03:02.4]} 9... O-O {[%clk 0:02:57.1]} 10. Be2
{[%clk 0:03:03.1]} 10... Bd7 {[%clk 0:02:56.4]} 11. O-O {[%clk 0:03:03.1]} 11...
Rc8 {[%clk 0:02:56.3]} 12. Rac1 {[%clk 0:03:01.1]} 12... Qa5 {[%clk 0:02:50.7]}
13. Rfd1 {[%clk 0:03:00.4]} 13... Rfd8 {[%clk 0:02:48.8]} 14. h3 {[%clk
0:02:57.6]} 14... Be8 {[%clk 0:02:37.1]} 15. Qe3 {[%clk 0:02:01.7]} 15... e6
{[%clk 0:02:28]} 16. a3 {[%clk 0:01:55.8]} 16... Qc7 {[%clk 0:01:42.3]} 17. Rc2
{[%clk 0:01:25.9]} 17... Qb8 {[%clk 0:01:39.9]} 18. Rcd2 {[%clk 0:01:20.4]}
18... Na5 {[%clk 0:01:26.8]} 19. Qb6 {[%clk 0:01:13.2]} 19... Qc7 {[%clk
0:01:11]} 20. Qxc7 {[%clk 0:01:12]} 20... Rxc7 {[%clk 0:01:11.9]} 21. Rxd6
{[%clk 0:01:02.4]} 21... Rxd6 {[%clk 0:01:10.4]} 22. Rxd6 {[%clk 0:01:03.3]}
22... Nxb3 {[%clk 0:01:07]} 23. Rd8 {[%clk 0:01:02.7]} 23... Kf8 {[%clk
0:01:01.5]} 24. e5 {[%clk 0:00:54.1]} 24... Nd7 {[%clk 0:00:59]} 25. Ne4 {[%clk
0:00:52.8]} 25... Ke7 {[%clk 0:00:51.5]} 26. Ra8 {[%clk 0:00:34.6]} 26... Nb6
{[%clk 0:00:45.8]} 27. Rb8 {[%clk 0:00:19.2]} 27... Bc6 {[%clk 0:00:13.5]} 28.
Nd6 {[%clk 0:00:13.3]} 28... Nd7 {[%clk 0:00:12.4]} 29. Rg8 {[%clk 0:00:12.5]}
29... Bf8 {[%clk 0:00:08.7]} 30. Rh8 {[%clk 0:00:06.6]} 30... h5 {[%clk
0:00:08.3]} 31. Rh7 {[%clk 0:00:05.8]} 31... Kd8 {[%clk 0:00:05.1]} 32. Rxf7
{[%clk 0:00:05.8]} 32... Be7 {[%clk 0:00:05.5]} 33. Nd4 {[%clk 0:00:03.4]} 33...
Nxd4 {[%clk 0:00:05.2]} 34. Bxd4 {[%clk 0:00:03.2]} 34... b5 {[%clk 0:00:03.4]}
35. cxb5 {[%clk 0:00:02.3]} 35... axb5 {[%clk 0:00:04.3]} 36. Bd3 {[%clk
0:00:02.5]} 36... b4 {[%clk 0:00:01.9]} 37. Bxg6 {[%clk 0:00:02.5]} 37... Bd5
{[%clk 0:00:02.8]} 38. axb4 {[%clk 0:00:02.5]} 38... Rc1+ {[%clk 0:00:02.6]} 39.
Kh2 {[%clk 0:00:02.9]} 39... Nf8 {[%clk 0:00:03.2]} 40. Nb7+ {[%clk 0:00:02.2]}
40... Bxb7 {[%clk 0:00:01.6]} 41. Bc5 {[%clk 0:00:02.8]} 41... Bxc5 {[%clk
0:00:01.2]} 42. bxc5 {[%clk 0:00:03.7]} 42... Nxg6 {[%clk 0:00:01.6]} 43. Rxb7
{[%clk 0:00:03.2]} 43... Nxe5 {[%clk 0:00:02.1]} 44. Rh7 {[%clk 0:00:03.6]}
44... Rxc5 {[%clk 0:00:02.1]} 45. Rxh5 {[%clk 0:00:04.1]} 45... Ke7 {[%clk
0:00:02.6]} 46. g4 {[%clk 0:00:03.7]} 46... Nf3+ {[%clk 0:00:02.1]} 47. Kg3
{[%clk 0:00:04.4]} 47... Rxh5 {[%clk 0:00:02.8]} 48. gxh5 {[%clk 0:00:05.1]}
48... Ne5 {[%clk 0:00:03.2]} 49. Kf4 {[%clk 0:00:05.4]} 49... Kf6 {[%clk
0:00:03.8]} 50. h4 {[%clk 0:00:05.3]} 50... Nf7 {[%clk 0:00:04.1]} 51. f3 {[%clk
0:00:05.4]} 51... Kg7 {[%clk 0:00:04.3]} 52. Ke4 {[%clk 0:00:03.7]} 52... Kh6
{[%clk 0:00:04.3]} 53. f4 {[%clk 0:00:04.6]} 53... Kxh5 {[%clk 0:00:03.4]} 54.
f5 {[%clk 0:00:04.6]} 54... Nd6+ {[%clk 0:00:03.3]} 55. Ke5 {[%clk 0:00:05.3]}
55... exf5 {[%clk 0:00:04]} 56. Kxd6 {[%clk 0:00:05.8]} 56... f4 {[%clk
0:00:04.6]} 0-1